[Event "Masters Tournament (MTO)"]
[Site "Biel, Switzerland"]
[Date "2026.07.17"]
[Round "5.23"]
[White "Gireada, Daniel"]
[Black "Papaux, Jeremie"]
[Result "1/2-1/2"]
[TimeControl "100+30+30sec/move"]
[WhiteTitle "-"]
[BlackTitle "-"]
[WhiteFideId "1206451"]
[BlackFideId "1340867"]
[WhiteElo "2255"]
[BlackElo "2102"]

1. d4 {[%clk 01:40:56]} {[%emt 00:00:04]} d5 {[%clk 01:40:55]} {[%emt
00:00:08]} 2. c4 {[%clk 01:41:20]} {[%emt 00:00:03]} e6 {[%clk 01:41:21]}
{[%emt 00:00:04]} 3. Nc3 {[%clk 01:41:37]} {[%emt 00:00:15]} Be7 {[%clk
01:41:14]} {[%emt 00:00:37]} 4. cxd5 {[%clk 01:41:35]} {[%emt 00:00:31]} exd5
{[%clk 01:41:40]} {[%emt 00:00:06]} 5. Bf4 {[%clk 01:41:51]} {[%emt 00:00:11]}
c6 {[%clk 01:40:09]} {[%emt 00:02:02]} 6. e3 {[%clk 01:42:03]} {[%emt
00:00:18]} Bf5 {[%clk 01:40:26]} {[%emt 00:00:13]} 7. g4 {[%clk 01:41:03]}
{[%emt 00:01:30]} Be6 {[%clk 01:40:53]} {[%emt 00:00:03]} 8. h4 {[%clk
01:40:45]} {[%emt 00:00:48]} Nd7 {[%clk 01:41:18]} {[%emt 00:00:05]} 9. Bd3
{[%clk 01:39:16]} {[%emt 00:01:58]} Bxh4 {[%clk 01:41:02]} {[%emt 00:00:46]} 10.
Qb3 {[%clk 01:38:40]} {[%emt 00:01:07]} g5 {[%clk 01:33:53]} {[%emt 00:07:38]}
11. Be5 {[%clk 01:27:48]} {[%emt 00:11:22]} Nxe5 {[%clk 01:32:54]} {[%emt
00:01:29]} 12. dxe5 {[%clk 01:28:13]} {[%emt 00:00:06]} d4 {[%clk 01:27:39]}
{[%emt 00:05:45]} 13. Qxb7 {[%clk 01:28:32]} {[%emt 00:00:10]} dxc3 {[%clk
01:28:03]} {[%emt 00:00:06]} 14. Qxc6+ {[%clk 01:28:54]} {[%emt 00:00:09]} Kf8
{[%clk 01:27:09]} {[%emt 00:01:24]} 15. Qxc3 {[%clk 01:23:54]} {[%emt
00:05:29]} Ne7 {[%clk 01:16:08]} {[%emt 00:11:31]} 16. Rd1 {[%clk 01:19:18]}
{[%emt 00:05:07]} Qb6 {[%clk 01:14:17]} {[%emt 00:02:21]} 17. Bf5 {[%clk
01:16:47]} {[%emt 00:03:01]} Bxf5 {[%clk 01:07:56]} {[%emt 00:06:51]} 18. gxf5
{[%clk 01:16:14]} {[%emt 00:01:02]} Nxf5 {[%clk 01:07:26]} {[%emt 00:01:00]} 19.
Rd3 {[%clk 01:01:11]} {[%emt 00:15:33]} Kg7 {[%clk 00:58:25]} {[%emt 00:09:32]}
20. Nf3 {[%clk 00:43:51]} {[%emt 00:17:49]} Rhd8 {[%clk 00:56:11]} {[%emt
00:02:44]} 21. Rd6 {[%clk 00:23:31]} {[%emt 00:20:51]} Nxd6 {[%clk 00:50:15]}
{[%emt 00:06:26]} 22. exd6+ {[%clk 00:23:52]} {[%emt 00:00:08]} f6 {[%clk
00:50:41]} {[%emt 00:00:05]} 23. Nxh4 {[%clk 00:24:16]} {[%emt 00:00:07]} Rxd6
{[%clk 00:46:47]} {[%emt 00:04:23]} 24. Nf5+ {[%clk 00:23:32]} {[%emt
00:01:15]} Kh8 {[%clk 00:46:18]} {[%emt 00:00:59]} 25. Nxd6 {[%clk 00:18:54]}
{[%emt 00:05:08]} Qxd6 {[%clk 00:46:39]} {[%emt 00:00:09]} 26. Qc2 {[%clk
00:15:21]} {[%emt 00:04:03]} Qd7 {[%clk 00:44:08]} {[%emt 00:03:00]} 27. Qc3
{[%clk 00:13:47]} {[%emt 00:02:04]} Kg7 {[%clk 00:43:57]} {[%emt 00:00:41]} 28.
Qc2 {[%clk 00:12:11]} {[%emt 00:02:07]} h6 {[%clk 00:44:06]} {[%emt 00:00:21]}
29. Qe4 {[%clk 00:11:38]} {[%emt 00:01:02]} Re8 {[%clk 00:44:11]} {[%emt
00:00:26]} 30. Qf3 {[%clk 00:11:53]} {[%emt 00:00:15]} Qb5 {[%clk 00:43:13]}
{[%emt 00:01:28]} 31. Qh5 {[%clk 00:08:42]} {[%emt 00:03:41]} Rh8 {[%clk
00:43:20]} {[%emt 00:00:22]} 32. Qe2 {[%clk 00:07:50]} {[%emt 00:01:22]} Qa5+
{[%clk 00:41:11]} {[%emt 00:02:40]} 33. Qd2 {[%clk 00:08:03]} {[%emt 00:00:17]}
Qxa2 {[%clk 00:41:23]} {[%emt 00:00:18]} 34. O-O {[%clk 00:08:30]} {[%emt
00:00:03]} Rb8 {[%emt 00:03:38]} 35. Rc1 {[%clk 00:07:18]} Rb7 {[%clk
00:39:03]} {[%emt 00:01:23]} 36. Qd8 {[%clk 00:05:43]} {[%emt 00:02:05]} Qf7
{[%clk 00:39:00]} {[%emt 00:00:33]} 37. Rc8 {[%clk 00:04:50]} {[%emt 00:01:23]}
Rd7 {[%clk 00:37:51]} {[%emt 00:01:39]} 38. Qh8+ {[%clk 00:03:07]} {[%emt
00:02:13]} Kg6 {[%clk 00:38:16]} {[%emt 00:00:05]} 39. e4 {[%clk 00:03:03]}
{[%emt 00:00:34]} Qe6 {[%clk 00:30:38]} {[%emt 00:08:08]} 40. Qe8+ {[%clk
00:00:33]} {[%emt 00:03:00]} Qxe8 {[%clk 00:30:57]} {[%emt 00:00:10]} 41. Rxe8
{[%clk 00:00:55]} {[%emt 00:00:08]} Rb7 {[%clk 00:30:40]} {[%emt 00:00:46]} 42.
Rg8+ {[%clk 00:28:19]} {[%emt 00:03:06]} Kf7 {[%clk 01:00:38]} {[%emt
00:00:33]} 43. Rh8 {[%clk 00:28:37]} {[%emt 00:00:12]} Kg7 {[%clk 00:59:56]}
{[%emt 00:01:12]} 44. Re8 {[%clk 00:28:02]} {[%emt 00:01:05]} h5 {[%clk
00:59:12]} {[%emt 00:01:14]} 45. Re6 {[%clk 00:16:45]} {[%emt 00:11:47]} h4
{[%clk 00:57:29]} {[%emt 00:02:12]} 46. Ra6 {[%clk 00:05:33]} {[%emt 00:11:43]}
Kf7 {[%clk 00:57:48]} {[%emt 00:00:11]} 47. Kg2 {[%clk 00:05:42]} {[%emt
00:00:21]} g4 {[%clk 00:56:47]} {[%emt 00:01:30]} 48. b3 {[%clk 00:04:39]}
{[%emt 00:01:34]} Rxb3 {[%clk 00:54:11]} {[%emt 00:03:06]} 49. Rxa7+ {[%clk
00:05:01]} {[%emt 00:00:08]} Kg6 {[%clk 00:54:28]} {[%emt 00:00:13]} 50. Ra6
{[%clk 00:04:14]} {[%emt 00:01:17]} Kg5 {[%clk 00:54:38]} {[%emt 00:00:19]} 51.
Ra5+ {[%clk 00:04:05]} {[%emt 00:00:39]} Kg6 {[%clk 00:52:46]} {[%emt
00:02:22]} 52. Rf5 {[%clk 00:03:30]} {[%emt 00:01:06]} h3+ {[%clk 00:49:20]}
{[%emt 00:03:55]} 53. Kh2 {[%clk 00:03:08]} {[%emt 00:00:53]} Rb4 {[%clk
00:49:15]} {[%emt 00:00:35]} 54. Rf4 {[%clk 00:03:22]} {[%emt 00:00:16]} Kg5
{[%clk 00:49:15]} {[%emt 00:00:29]} 55. Rf5+ {[%clk 00:03:35]} {[%emt
00:00:17]} Kh4 {[%clk 00:49:14]} {[%emt 00:00:31]} 56. Rxf6 {[%clk 00:03:01]}
{[%emt 00:01:04]} Rxe4 {[%clk 00:49:17]} {[%emt 00:00:26]} 57. Rf8 {[%clk
00:03:12]} {[%emt 00:00:21]} Rd4 {[%clk 00:48:21]} {[%emt 00:01:26]} 58. Rh8+
{[%clk 00:02:21]} {[%emt 00:01:21]} Kg5 {[%clk 00:48:43]} {[%emt 00:00:08]} 59.
Rg8+ {[%clk 00:02:46]} {[%emt 00:00:05]} Kf5 {[%clk 00:48:51]} {[%emt
00:00:21]} 60. Rf8+ {[%clk 00:03:05]} {[%emt 00:00:11]} Ke4 {[%clk 00:48:26]}
{[%emt 00:00:55]} 61. Kg3 {[%clk 00:01:40]} {[%emt 00:01:56]} Rd7 {[%clk
00:44:11]} {[%emt 00:04:44]} 62. Rf4+ {[%clk 00:01:47]} {[%emt 00:00:23]} Kd3
{[%clk 00:44:22]} {[%emt 00:00:19]} 63. Rxg4 {[%clk 00:02:08]} {[%emt
00:00:09]} Rh7 {[%clk 00:43:58]} {[%emt 00:00:54]} 64. Kh2 {[%clk 00:02:22]}
{[%emt 00:00:16]} Rf7 {[%clk 00:43:55]} {[%emt 00:00:33]} 1/2-1/2

[Event "Masters Tournament (MTO)"]
[Site "Biel, Switzerland"]
[Date "2026.07.17"]
[Round "5.24"]
[White "Matsumura, Cocoro"]
[Black "Stefan, Iulia-Cristiana"]
[Result "0-1"]
[TimeControl "100+30+30sec/move"]
[WhiteTitle "-"]
[BlackTitle "-"]
[WhiteFideId "36087114"]
[BlackFideId "1273876"]
[WhiteElo "2225"]
[BlackElo "2053"]

1. e4 {[%clk 01:37:03]} {[%emt 00:02:49]} e5 {[%clk 01:40:56]} {[%emt
00:00:05]} 2. Nf3 {[%clk 01:37:29]} {[%emt 00:00:06]} Nc6 {[%clk 01:41:18]}
{[%emt 00:00:07]} 3. Bc4 {[%clk 01:37:54]} {[%emt 00:00:04]} Nf6 {[%clk
01:41:40]} {[%emt 00:00:08]} 4. d3 {[%clk 01:38:19]} {[%emt 00:00:05]} h6
{[%clk 01:42:04]} {[%emt 00:00:06]} 5. c3 {[%clk 01:38:27]} {[%emt 00:00:22]}
d6 {[%clk 01:42:29]} {[%emt 00:00:07]} 6. O-O {[%clk 01:38:50]} {[%emt
00:00:07]} g6 {[%clk 01:42:56]} 7. d4 {[%clk 01:38:53]} {[%emt 00:00:27]} Qe7
{[%clk 01:43:09]} {[%emt 00:00:17]} 8. Re1 {[%clk 01:38:38]} {[%emt 00:00:45]}
Bg7 {[%clk 01:43:00]} {[%emt 00:00:39]} 9. a4 {[%clk 01:36:59]} {[%emt
00:02:09]} O-O {[%clk 01:41:43]} {[%emt 00:01:46]} 10. Nbd2 {[%clk 01:34:52]}
{[%emt 00:02:37]} Nh5 {[%clk 01:35:12]} {[%emt 00:07:01]} 11. d5 {[%clk
01:29:43]} {[%emt 00:05:40]} Nb8 {[%clk 01:33:44]} {[%emt 00:01:58]} 12. Nf1
{[%clk 01:24:32]} {[%emt 00:05:40]} Nf4 {[%clk 01:11:30]} {[%emt 00:22:44]} 13.
a5 {[%clk 01:17:38]} {[%emt 00:07:26]} a6 {[%clk 01:04:31]} {[%emt 00:07:28]}
14. g3 {[%clk 01:03:12]} {[%emt 00:14:55]} Nh3+ {[%clk 01:03:22]} {[%emt
00:01:40]} 15. Kg2 {[%clk 01:03:35]} {[%emt 00:00:06]} f5 {[%clk 00:57:57]}
{[%emt 00:05:55]} 16. exf5 {[%clk 00:42:31]} {[%emt 00:21:34]} Bxf5 {[%clk
00:57:29]} {[%emt 00:00:58]} 17. Be3 {[%clk 00:42:25]} {[%emt 00:00:35]} g5
{[%clk 00:29:26]} {[%emt 00:28:33]} 18. N3d2 {[%clk 00:32:40]} {[%emt
00:10:15]} g4 {[%clk 00:22:15]} {[%emt 00:07:41]} 19. Be2 {[%clk 00:31:52]}
{[%emt 00:01:18]} h5 {[%clk 00:21:44]} {[%emt 00:01:02]} 20. Qb3 {[%clk
00:29:02]} {[%emt 00:03:21]} Nd7 {[%clk 00:13:47]} {[%emt 00:08:27]} 21. Qxb7
{[%clk 00:28:23]} {[%emt 00:01:08]} Rab8 {[%clk 00:13:03]} {[%emt 00:01:14]} 22.
Qxa6 {[%clk 00:24:35]} {[%emt 00:04:19]} Rxb2 {[%clk 00:12:52]} {[%emt
00:00:41]} 23. Qc4 {[%clk 00:22:02]} {[%emt 00:03:02]} Qf7 {[%clk 00:11:14]}
{[%emt 00:02:08]} 24. Qxc7 {[%clk 00:18:52]} {[%emt 00:03:41]} Be4+ {[%clk
00:01:26]} {[%emt 00:10:18]} 25. Nxe4 {[%clk 00:17:24]} {[%emt 00:01:58]} Rxe2
{[%clk 00:01:45]} {[%emt 00:00:10]} 26. Nfd2 {[%clk 00:17:39]} {[%emt
00:00:15]} Rxd2 {[%clk 00:01:06]} {[%emt 00:01:10]} 27. Nxd2 {[%clk 00:16:12]}
{[%emt 00:01:56]} Qxd5+ {[%clk 00:01:05]} {[%emt 00:00:31]} 28. Kf1 {[%clk
00:12:48]} {[%emt 00:03:54]} Nc5 {[%clk 00:00:57]} {[%emt 00:00:38]} 29. Rad1
{[%clk 00:07:42]} {[%emt 00:05:35]} Bh6 {[%clk 00:01:14]} {[%emt 00:00:14]} 30.
Bxc5 {[%clk 00:06:35]} {[%emt 00:01:37]} Bxd2 {[%clk 00:00:41]} {[%emt
00:01:03]} 31. Be3 {[%clk 00:06:03]} {[%emt 00:01:02]} Bxe3 {[%clk 00:01:00]}
{[%emt 00:00:11]} 0-1

[Event "Masters Tournament (MTO)"]
[Site "Biel, Switzerland"]
[Date "2026.07.17"]
[Round "5.25"]
[White "Cervelli, Eduard"]
[Black "Al Ibrahim, Abdulrahman"]
[Result "1-0"]
[TimeControl "100+30+30sec/move"]
[WhiteTitle "-"]
[BlackTitle "-"]
[WhiteFideId "1351800"]
[BlackFideId "10300503"]
[WhiteElo "2197"]
[BlackElo "2016"]

1. e4 {[%clk 01:40:56]} {[%emt 00:00:05]} c6 {[%clk 01:40:54]} {[%emt
00:00:07]} 2. d4 {[%clk 01:41:00]} {[%emt 00:00:23]} d5 {[%clk 01:41:18]}
{[%emt 00:00:06]} 3. f3 {[%clk 01:41:10]} {[%emt 00:00:21]} Qb6 {[%clk
01:41:32]} {[%emt 00:00:15]} 4. Nc3 {[%clk 01:40:59]} {[%emt 00:00:41]} dxe4
{[%clk 01:41:16]} {[%emt 00:00:47]} 5. fxe4 {[%clk 01:40:55]} {[%emt 00:00:32]}
e5 {[%clk 01:41:31]} {[%emt 00:00:15]} 6. Nf3 {[%clk 01:40:51]} {[%emt
00:00:34]} exd4 {[%clk 01:41:45]} {[%emt 00:00:18]} 7. Nxd4 {[%clk 01:41:11]}
{[%emt 00:00:08]} h5 {[%clk 01:40:53]} {[%emt 00:01:23]} 8. Be2 {[%clk
01:40:31]} {[%emt 00:01:09]} Bg4 {[%clk 01:36:05]} {[%emt 00:05:19]} 9. Bxg4
{[%clk 01:40:36]} {[%emt 00:00:25]} hxg4 {[%clk 01:36:27]} {[%emt 00:00:08]} 10.
Qd3 {[%clk 01:37:38]} {[%emt 00:03:27]} Nd7 {[%clk 01:35:20]} {[%emt 00:01:39]}
11. Bf4 {[%clk 01:37:21]} {[%emt 00:00:46]} Bc5 {[%clk 01:28:10]} {[%emt
00:07:41]} 12. Nf5 {[%clk 01:24:25]} {[%emt 00:13:25]} g6 {[%clk 01:26:18]}
{[%emt 00:02:22]} 13. Ng7+ {[%clk 01:11:42]} {[%emt 00:13:13]} Ke7 {[%clk
01:26:30]} {[%emt 00:00:19]} 14. O-O-O {[%clk 01:11:22]} {[%emt 00:00:49]} Kf8
{[%clk 01:21:19]} {[%emt 00:05:41]} 15. Ne6+ {[%clk 01:09:34]} {[%emt
00:02:18]} fxe6 {[%clk 01:20:13]} {[%emt 00:01:36]} 16. Qxd7 {[%clk 01:09:11]}
{[%emt 00:00:54]} 1-0

[Event "Masters Tournament (MTO)"]
[Site "Biel, Switzerland"]
[Date "2026.07.17"]
[Round "5.26"]
[White "Iafelice, Vincenzo"]
[Black "Ling, Chenxuan"]
[Result "0-1"]
[TimeControl "100+30+30sec/move"]
[WhiteTitle "-"]
[BlackTitle "-"]
[WhiteFideId "810541"]
[BlackFideId "30983118"]
[WhiteElo "2086"]
[BlackElo "2166"]

1. e4 {[%clk 01:40:56]} {[%emt 00:00:02]} e6 {[%clk 01:39:34]} {[%emt
00:01:28]} 2. d4 {[%clk 01:41:15]} {[%emt 00:00:13]} d5 {[%clk 01:39:39]}
{[%emt 00:00:23]} 3. e5 {[%clk 01:41:35]} {[%emt 00:00:09]} c5 {[%clk
01:39:57]} {[%emt 00:00:13]} 4. c3 {[%clk 01:41:56]} {[%emt 00:00:08]} Nc6
{[%clk 01:40:21]} {[%emt 00:00:06]} 5. Nf3 {[%clk 01:42:15]} {[%emt 00:00:10]}
Bd7 {[%clk 01:40:31]} {[%emt 00:00:21]} 6. Be2 {[%clk 01:42:18]} {[%emt
00:00:26]} Nge7 {[%clk 01:40:50]} {[%emt 00:00:11]} 7. Na3 {[%clk 01:42:04]}
{[%emt 00:00:44]} Nf5 {[%clk 01:40:30]} {[%emt 00:00:50]} 8. Nc2 {[%clk
01:42:15]} {[%emt 00:00:19]} cxd4 {[%clk 01:40:53]} {[%emt 00:00:07]} 9. cxd4
{[%clk 01:42:39]} {[%emt 00:00:06]} Be7 {[%clk 01:41:20]} {[%emt 00:00:04]} 10.
O-O {[%clk 01:41:39]} {[%emt 00:01:29]} O-O {[%clk 01:41:24]} {[%emt 00:00:26]}
11. Bd3 {[%clk 01:34:09]} {[%emt 00:08:00]} f6 {[%clk 01:41:31]} {[%emt
00:00:24]} 12. Bxf5 {[%clk 01:31:08]} {[%emt 00:03:30]} exf5 {[%clk 01:41:59]}
{[%emt 00:00:02]} 13. Bf4 {[%clk 01:27:15]} {[%emt 00:04:23]} g5 {[%clk
01:37:56]} {[%emt 00:04:33]} 14. exf6 {[%clk 01:27:09]} {[%emt 00:00:35]} Bxf6
{[%clk 01:38:21]} {[%emt 00:00:06]} 15. Be5 {[%clk 01:10:18]} {[%emt 00:17:22]}
f4 {[%clk 01:29:52]} {[%emt 00:08:59]} 16. Qd2 {[%clk 00:40:29]} {[%emt
00:30:18]} Bg4 {[%clk 01:26:34]} {[%emt 00:03:48]} 17. Bxf6 {[%clk 00:31:32]}
{[%emt 00:09:28]} Qxf6 {[%clk 01:26:57]} {[%emt 00:00:07]} 18. Nfe1 {[%clk
00:25:36]} {[%emt 00:06:25]} Rae8 {[%clk 01:21:18]} {[%emt 00:06:08]} 19. f3
{[%clk 00:25:15]} {[%emt 00:00:52]} Bf5 {[%clk 01:21:39]} {[%emt 00:00:09]} 20.
Rd1 {[%clk 00:24:20]} {[%emt 00:01:25]} Re7 {[%clk 01:11:41]} {[%emt 00:10:28]}
21. Rf2 {[%clk 00:23:33]} {[%emt 00:01:17]} Rfe8 {[%clk 01:11:34]} {[%emt
00:00:38]} 22. g3 {[%clk 00:18:25]} {[%emt 00:05:37]} Kh8 {[%clk 01:07:07]}
{[%emt 00:04:58]} 23. gxf4 {[%clk 00:13:02]} {[%emt 00:05:53]} g4 {[%clk
01:05:54]} {[%emt 00:01:42]} 24. Nd3 {[%clk 00:04:48]} {[%emt 00:08:44]} gxf3
{[%clk 01:02:13]} {[%emt 00:04:11]} 25. Ne5 {[%clk 00:05:09]} {[%emt 00:00:09]}
Rg8+ {[%clk 01:01:54]} {[%emt 00:00:50]} 26. Kh1 {[%clk 00:05:26]} {[%emt
00:00:12]} Reg7 {[%clk 01:02:17]} {[%emt 00:00:07]} 27. Ne3 {[%clk 00:03:53]}
{[%emt 00:02:04]} Be4 {[%clk 01:02:00]} {[%emt 00:00:44]} 0-1